[Event "Late-Titled-Tuesday-Blitz-February-27-2024"]
[Site "Chess.com"]
[Date "2024.02.27"]
[Round "9"]
[White "Jahonas"]
[Black "Journey_to_GrandMaster_YT"]
[Result "0-1"]
[WhiteElo "2372"]
[BlackElo "2514"]
[TimeControl "180+1"]
[EndTime "15:44:30 PST"]
[Termination "Journey_to_GrandMaster_YT won on time"]

1. d4 {[%clk 0:03:00.9]} 1... d6 {[%clk 0:03:00.9]} 2. c4 {[%clk 0:03:01.1]}
2... Nf6 {[%clk 0:03:01.7]} 3. Nf3 {[%clk 0:03:01.6]} 3... Nbd7 {[%clk
0:03:01.9]} 4. Nc3 {[%clk 0:03:01.9]} 4... e5 {[%clk 0:03:02.5]} 5. dxe5 {[%clk
0:03:01]} 5... dxe5 {[%clk 0:03:02.6]} 6. a3 {[%clk 0:02:56.2]} 6... a5 {[%clk
0:03:01.8]} 7. Bg5 {[%clk 0:02:55.8]} 7... c6 {[%clk 0:03:00.8]} 8. e3 {[%clk
0:02:55.3]} 8... Be7 {[%clk 0:02:59.8]} 9. Qc2 {[%clk 0:02:52.4]} 9... O-O
{[%clk 0:02:58.9]} 10. Rd1 {[%clk 0:02:51.7]} 10... Qc7 {[%clk 0:02:58.9]} 11.
Be2 {[%clk 0:02:50.4]} 11... Nc5 {[%clk 0:02:56.5]} 12. Bh4 {[%clk 0:02:30.3]}
12... Re8 {[%clk 0:02:21.8]} 13. O-O {[%clk 0:02:27.7]} 13... e4 {[%clk
0:02:00.2]} 14. Bg3 {[%clk 0:02:22.8]} 14... Qb6 {[%clk 0:01:52.5]} 15. Nd4
{[%clk 0:02:18.1]} 15... Bf8 {[%clk 0:01:48.9]} 16. Rd2 {[%clk 0:02:03.1]} 16...
a4 {[%clk 0:01:46.9]} 17. Rfd1 {[%clk 0:01:48.2]} 17... g6 {[%clk 0:01:41]} 18.
h3 {[%clk 0:01:44.2]} 18... Bg7 {[%clk 0:01:36.7]} 19. Bd6 {[%clk 0:01:33.4]}
19... Nfd7 {[%clk 0:01:30.7]} 20. Bg4 {[%clk 0:01:05.5]} 20... f5 {[%clk
0:01:28.4]} 21. Be2 {[%clk 0:00:57.8]} 21... Ne5 {[%clk 0:01:13.4]} 22. Bxc5
{[%clk 0:00:55.2]} 22... Qxc5 {[%clk 0:01:11]} 23. Nxa4 {[%clk 0:00:55.3]} 23...
Qa7 {[%clk 0:00:59.7]} 24. Nc3 {[%clk 0:00:52.9]} 24... Rf8 {[%clk 0:00:39.1]}
25. Bf1 {[%clk 0:00:49.8]} 25... Bd7 {[%clk 0:00:31.2]} 26. Nde2 {[%clk
0:00:44.8]} 26... Be6 {[%clk 0:00:27.1]} 27. Nf4 {[%clk 0:00:32]} 27... Bf7
{[%clk 0:00:19.6]} 28. Na2 {[%clk 0:00:25.5]} 28... g5 {[%clk 0:00:17.7]} 29.
Ne2 {[%clk 0:00:20.1]} 29... Bxc4 {[%clk 0:00:17.5]} 30. Nb4 {[%clk 0:00:17.8]}
30... c5 {[%clk 0:00:13.1]} 31. Nd5 {[%clk 0:00:16.7]} 31... Bd3 {[%clk
0:00:13.2]} 32. Qc1 {[%clk 0:00:15.2]} 32... Rad8 {[%clk 0:00:10.7]} 33. Nec3
{[%clk 0:00:15.2]} 33... Kh8 {[%clk 0:00:08.8]} 34. Bxd3 {[%clk 0:00:11.4]}
34... Nxd3 {[%clk 0:00:09.2]} 35. Rxd3 {[%clk 0:00:11.9]} 35... exd3 {[%clk
0:00:10.1]} 36. Rxd3 {[%clk 0:00:12.6]} 36... b6 {[%clk 0:00:09.3]} 37. Qd1
{[%clk 0:00:12.6]} 37... Qb7 {[%clk 0:00:08.3]} 38. a4 {[%clk 0:00:10.8]} 38...
Rd6 {[%clk 0:00:05.9]} 39. Qh5 {[%clk 0:00:08.8]} 39... h6 {[%clk 0:00:04.1]}
40. Qe2 {[%clk 0:00:06.2]} 40... Rfd8 {[%clk 0:00:04]} 41. e4 {[%clk 0:00:06.5]}
41... fxe4 {[%clk 0:00:03.7]} 42. Qxe4 {[%clk 0:00:06.7]} 42... Bxc3 {[%clk
0:00:03.1]} 43. bxc3 {[%clk 0:00:03.2]} 43... Rxd5 {[%clk 0:00:03.6]} 44. Rxd5
{[%clk 0:00:03.1]} 44... Qxd5 {[%clk 0:00:04]} 0-1

[Event "Late-Titled-Tuesday-Blitz-February-27-2024"]
[Site "Chess.com"]
[Date "2024.02.27"]
[Round "9"]
[White "Bkmzzzzz"]
[Black "dosto07"]
[Result "1-0"]
[WhiteElo "2417"]
[BlackElo "2503"]
[TimeControl "180+1"]
[EndTime "15:44:31 PST"]
[Termination "Bkmzzzzz won on time"]

1. e4 {[%clk 0:02:56.2]} 1... e5 {[%clk 0:02:59.1]} 2. Nf3 {[%clk 0:02:56.3]}
2... Nc6 {[%clk 0:02:59.7]} 3. Nc3 {[%clk 0:02:56.9]} 3... Nf6 {[%clk
0:02:59.4]} 4. d4 {[%clk 0:02:57.5]} 4... exd4 {[%clk 0:03:00.3]} 5. Nxd4 {[%clk
0:02:57.9]} 5... Bb4 {[%clk 0:03:00.8]} 6. Nxc6 {[%clk 0:02:58.4]} 6... bxc6
{[%clk 0:03:01.5]} 7. Bd3 {[%clk 0:02:58.6]} 7... d5 {[%clk 0:03:01.2]} 8. exd5
{[%clk 0:02:59.5]} 8... O-O {[%clk 0:03:01.4]} 9. O-O {[%clk 0:02:59.8]} 9...
cxd5 {[%clk 0:03:01.8]} 10. Bg5 {[%clk 0:03:00.3]} 10... c6 {[%clk 0:03:01.2]}
11. Na4 {[%clk 0:03:00.2]} 11... h6 {[%clk 0:03:00.5]} 12. Bh4 {[%clk
0:02:59.7]} 12... Bd6 {[%clk 0:03:00.7]} 13. c3 {[%clk 0:02:59.2]} 13... a5
{[%clk 0:02:55.3]} 14. a3 {[%clk 0:02:58.4]} 14... Ba6 {[%clk 0:02:54.7]} 15.
Bxa6 {[%clk 0:02:25.5]} 15... Rxa6 {[%clk 0:02:54.7]} 16. b4 {[%clk 0:02:26.2]}
16... g5 {[%clk 0:02:48.5]} 17. Bg3 {[%clk 0:02:25.9]} 17... Bxg3 {[%clk
0:02:47.6]} 18. hxg3 {[%clk 0:02:26.8]} 18... axb4 {[%clk 0:02:36.5]} 19. axb4
{[%clk 0:02:27.7]} 19... Ne4 {[%clk 0:02:35.9]} 20. Qd4 {[%clk 0:02:22.1]} 20...
Qd6 {[%clk 0:01:44]} 21. Nc5 {[%clk 0:02:09.5]} 21... Rxa1 {[%clk 0:01:38.8]}
22. Rxa1 {[%clk 0:02:10.4]} 22... Nxc5 {[%clk 0:01:37.9]} 23. bxc5 {[%clk
0:02:09.6]} 23... Qe6 {[%clk 0:01:37.4]} 24. Kh2 {[%clk 0:01:53.4]} 24... Re8
{[%clk 0:01:33.4]} 25. Ra6 {[%clk 0:01:51]} 25... Rb8 {[%clk 0:01:16.8]} 26. Qa4
{[%clk 0:01:46.9]} 26... Rb1 {[%clk 0:00:58.8]} 27. Ra8+ {[%clk 0:00:29.6]}
27... Kg7 {[%clk 0:00:57.8]} 28. Qd4+ {[%clk 0:00:30]} 28... f6 {[%clk
0:00:33.8]} 29. Ra7+ {[%clk 0:00:28]} 29... Kf8 {[%clk 0:00:29.4]} 30. Rh7
{[%clk 0:00:19]} 30... Kg8 {[%clk 0:00:23]} 31. Rc7 {[%clk 0:00:18.7]} 31... Qe1
{[%clk 0:00:16.5]} 32. g4 {[%clk 0:00:17.2]} 32... Qh1+ {[%clk 0:00:11.6]} 33.
Kg3 {[%clk 0:00:17.7]} 33... Qc1 {[%clk 0:00:06.6]} 34. Rxc6 {[%clk 0:00:16.8]}
34... Qf4+ {[%clk 0:00:05.4]} 35. Qxf4 {[%clk 0:00:16.7]} 35... gxf4+ {[%clk
0:00:06]} 36. Kxf4 {[%clk 0:00:17.3]} 36... Kf7 {[%clk 0:00:06.7]} 37. Rc7+
{[%clk 0:00:16.8]} 37... Ke6 {[%clk 0:00:06.5]} 38. f3 {[%clk 0:00:15.7]} 38...
Rc1 {[%clk 0:00:06.6]} 39. Rc6+ {[%clk 0:00:14.8]} 39... Ke7 {[%clk 0:00:06]}
40. Rd6 {[%clk 0:00:15]} 40... Rxc3 {[%clk 0:00:05.3]} 41. Rxd5 {[%clk
0:00:15.7]} 41... Ke6 {[%clk 0:00:05.3]} 42. Rh5 {[%clk 0:00:14.8]} 42... Rc2
{[%clk 0:00:03.6]} 43. Kg3 {[%clk 0:00:15.2]} 43... Rc1 {[%clk 0:00:02.1]} 44.
Rxh6 {[%clk 0:00:15.4]} 44... Ke5 {[%clk 0:00:01.9]} 45. Rh5+ {[%clk 0:00:15.4]}
45... Ke6 {[%clk 0:00:02.1]} 46. Rf5 {[%clk 0:00:15.8]} 46... Rc3 {[%clk
0:00:02.6]} 47. Kf4 {[%clk 0:00:16]} 47... Ke7 {[%clk 0:00:02.9]} 48. g5 {[%clk
0:00:15.9]} 48... Rc2 {[%clk 0:00:03.8]} 49. gxf6+ {[%clk 0:00:15.2]} 49... Kf7
{[%clk 0:00:04.7]} 50. Kg3 {[%clk 0:00:15]} 50... Rc1 {[%clk 0:00:04.6]} 51. Rf4
{[%clk 0:00:15.3]} 51... Rc4 {[%clk 0:00:04.2]} 52. Rxc4 {[%clk 0:00:15.1]} 1-0

[Event "Late-Titled-Tuesday-Blitz-February-27-2024"]
[Site "Chess.com"]
[Date "2024.02.27"]
[Round "9"]
[White "egnfanclub"]
[Black "Felix-Rose"]
[Result "0-1"]
[WhiteElo "2380"]
[BlackElo "2276"]
[TimeControl "180+1"]
[EndTime "15:44:31 PST"]
[Termination "Felix-Rose won by resignation"]

1. e4 {[%clk 0:02:52.8]} 1... e5 {[%clk 0:02:56.4]} 2. Nf3 {[%clk 0:02:49.2]}
2... Nc6 {[%clk 0:02:53.6]} 3. d4 {[%clk 0:02:49]} 3... exd4 {[%clk 0:02:51.7]}
4. Bc4 {[%clk 0:02:49.6]} 4... Nf6 {[%clk 0:02:47.4]} 5. O-O {[%clk 0:02:48.3]}
5... Nxe4 {[%clk 0:02:46.2]} 6. Re1 {[%clk 0:02:48]} 6... d5 {[%clk 0:02:45.4]}
7. Nc3 {[%clk 0:02:48.2]} 7... dxc3 {[%clk 0:02:37.3]} 8. Bxd5 {[%clk
0:02:48.1]} 8... Be6 {[%clk 0:02:36.4]} 9. Bxe4 {[%clk 0:02:36.2]} 9... Bb4
{[%clk 0:02:22.1]} 10. b3 {[%clk 0:02:20.5]} 10... Qxd1 {[%clk 0:02:17.8]} 11.
Bxc6+ {[%clk 0:02:18.8]} 11... bxc6 {[%clk 0:02:04.1]} 12. Rxd1 {[%clk
0:02:18.3]} 12... h6 {[%clk 0:02:01.9]} 13. Nd4 {[%clk 0:02:18.2]} 13... Bd5
{[%clk 0:01:59.3]} 14. a3 {[%clk 0:02:05.5]} 14... Be7 {[%clk 0:01:39.8]} 15.
Re1 {[%clk 0:01:52.8]} 15... Kd7 {[%clk 0:01:37.9]} 16. Be3 {[%clk 0:01:38.4]}
16... Bf6 {[%clk 0:01:34.8]} 17. Rad1 {[%clk 0:01:36.3]} 17... Rhe8 {[%clk
0:01:32.1]} 18. b4 {[%clk 0:01:22.3]} 18... a6 {[%clk 0:01:30]} 19. Nb3 {[%clk
0:01:14]} 19... Re5 {[%clk 0:01:01.6]} 20. Nc5+ {[%clk 0:01:08.6]} 20... Kc8
{[%clk 0:00:41.6]} 21. Bf4 {[%clk 0:01:01.8]} 21... Re7 {[%clk 0:00:29.4]} 22.
Be3 {[%clk 0:00:35]} 22... a5 {[%clk 0:00:26.5]} 23. b5 {[%clk 0:00:28.4]} 23...
Rb8 {[%clk 0:00:17]} 24. a4 {[%clk 0:00:28.7]} 24... Bc4 {[%clk 0:00:13.7]} 25.
Na6 {[%clk 0:00:28.4]} 25... Ra8 {[%clk 0:00:12.6]} 26. Bc5 {[%clk 0:00:24.5]}
26... Rxe1+ {[%clk 0:00:08.8]} 27. Rxe1 {[%clk 0:00:25.4]} 27... Be6 {[%clk
0:00:09.4]} 28. f4 {[%clk 0:00:19.4]} 28... cxb5 {[%clk 0:00:10]} 29. axb5
{[%clk 0:00:19.4]} 29... c6 {[%clk 0:00:10.5]} 30. f5 {[%clk 0:00:17.6]} 30...
Bd7 {[%clk 0:00:10.7]} 31. bxc6 {[%clk 0:00:16]} 31... Bxc6 {[%clk 0:00:11.2]}
32. Nb4 {[%clk 0:00:12]} 32... axb4 {[%clk 0:00:11.6]} 33. Bxb4 {[%clk
0:00:12.9]} 33... Kd7 {[%clk 0:00:10.3]} 34. Rd1+ {[%clk 0:00:12.1]} 34... Kc7
{[%clk 0:00:09.4]} 35. Rd3 {[%clk 0:00:12.3]} 35... Rd8 {[%clk 0:00:08.8]} 36.
Rg3 {[%clk 0:00:07.5]} 36... Rd1+ {[%clk 0:00:08.9]} 37. Kf2 {[%clk 0:00:07.4]}
37... Rd2+ {[%clk 0:00:09.6]} 38. Ke3 {[%clk 0:00:06.8]} 38... Rxc2 {[%clk
0:00:10]} 39. Kd3 {[%clk 0:00:06.4]} 39... Rb2 {[%clk 0:00:09.5]} 40. Bxc3
{[%clk 0:00:06.2]} 40... Rb3 {[%clk 0:00:10.2]} 41. Kc4 {[%clk 0:00:06.5]} 41...
Rxc3+ {[%clk 0:00:10.5]} 42. Rxc3 {[%clk 0:00:07.4]} 42... Bxc3 {[%clk
0:00:11.4]} 43. Kxc3 {[%clk 0:00:08]} 43... Bxg2 {[%clk 0:00:11.8]} 44. Kd4
{[%clk 0:00:08.2]} 44... Kd6 {[%clk 0:00:12.1]} 45. Ke3 {[%clk 0:00:08.1]} 45...
f6 {[%clk 0:00:12.3]} 0-1

[Event "Late-Titled-Tuesday-Blitz-February-27-2024"]
[Site "Chess.com"]
[Date "2024.02.27"]
[Round "9"]
[White "cthulhuuu"]
[Black "Roberz12"]
[Result "1-0"]
[WhiteElo "2461"]
[BlackElo "2579"]
[TimeControl "180+1"]
[EndTime "15:44:33 PST"]
[Termination "cthulhuuu won on time"]

1. e4 {[%clk 0:03:00.9]} 1... c5 {[%clk 0:02:56]} 2. Nf3 {[%clk 0:03:00.2]} 2...
g6 {[%clk 0:02:53.5]} 3. g3 {[%clk 0:03:00.1]} 3... Bg7 {[%clk 0:02:46.4]} 4.
Bg2 {[%clk 0:03:00.3]} 4... Nc6 {[%clk 0:02:46.9]} 5. O-O {[%clk 0:03:00.5]}
5... Nf6 {[%clk 0:02:47.6]} 6. d3 {[%clk 0:03:00.9]} 6... O-O {[%clk 0:02:48.1]}
7. Re1 {[%clk 0:03:01.3]} 7... d6 {[%clk 0:02:46.8]} 8. e5 {[%clk 0:03:01.7]}
8... dxe5 {[%clk 0:02:42.6]} 9. Nxe5 {[%clk 0:03:02.6]} 9... Nxe5 {[%clk
0:02:42.7]} 10. Rxe5 {[%clk 0:03:03.4]} 10... Nd7 {[%clk 0:02:13.3]} 11. Re1
{[%clk 0:02:57.8]} 11... e6 {[%clk 0:02:10.4]} 12. Nd2 {[%clk 0:02:48]} 12...
Rb8 {[%clk 0:02:06.2]} 13. Nc4 {[%clk 0:02:44.7]} 13... b5 {[%clk 0:02:05.7]}
14. Nd6 {[%clk 0:02:43.7]} 14... Ba6 {[%clk 0:02:03.7]} 15. a4 {[%clk
0:02:32.5]} 15... b4 {[%clk 0:01:59.1]} 16. h4 {[%clk 0:02:13.8]} 16... Qc7
{[%clk 0:01:56.1]} 17. Ne4 {[%clk 0:02:02.8]} 17... h5 {[%clk 0:01:51.8]} 18.
Rb1 {[%clk 0:01:52.1]} 18... b3 {[%clk 0:01:44.7]} 19. c3 {[%clk 0:01:47]} 19...
Ne5 {[%clk 0:01:37.3]} 20. Bf4 {[%clk 0:01:43.3]} 20... Rfd8 {[%clk 0:01:09.6]}
21. Nxc5 {[%clk 0:01:20.3]} 21... Qxc5 {[%clk 0:00:45.6]} 22. d4 {[%clk
0:01:18.6]} 22... Qa5 {[%clk 0:00:42.9]} 23. Bxe5 {[%clk 0:01:17.9]} 23... Bxe5
{[%clk 0:00:41.8]} 24. Rxe5 {[%clk 0:01:18.7]} 24... Qxa4 {[%clk 0:00:11.4]} 25.
Ra1 {[%clk 0:01:18.3]} 25... Qc4 {[%clk 0:00:11.9]} 26. Qd2 {[%clk 0:01:07.5]}
26... Rd7 {[%clk 0:00:10]} 27. Bf1 {[%clk 0:01:01.8]} 27... Qc7 {[%clk
0:00:09.7]} 28. Rea5 {[%clk 0:00:48.4]} 28... Bxf1 {[%clk 0:00:09.5]} 29. Kxf1
{[%clk 0:00:48.8]} 29... Rb7 {[%clk 0:00:09.1]} 30. Qh6 {[%clk 0:00:35.7]} 30...
Qc4+ {[%clk 0:00:07.3]} 31. Kg1 {[%clk 0:00:36.2]} 31... Qe2 {[%clk 0:00:05.7]}
32. Rb1 {[%clk 0:00:04.3]} 32... Qc2 {[%clk 0:00:03.8]} 33. Qc1 {[%clk
0:00:04.7]} 33... Qxc1+ {[%clk 0:00:03.6]} 34. Rxc1 {[%clk 0:00:05.6]} 34...
Rdc7 {[%clk 0:00:02.9]} 35. Rca1 {[%clk 0:00:05.9]} 35... Kf8 {[%clk 0:00:03.4]}
36. Kf1 {[%clk 0:00:05.7]} 36... Ke7 {[%clk 0:00:04]} 37. Ke2 {[%clk 0:00:06.1]}
37... Kd6 {[%clk 0:00:03.7]} 38. Kd3 {[%clk 0:00:06.5]} 38... Ke7 {[%clk
0:00:02.5]} 39. R1a3 {[%clk 0:00:06.5]} 39... f6 {[%clk 0:00:03.1]} 40. Ra6
{[%clk 0:00:06.4]} 40... g5 {[%clk 0:00:02.6]} 41. c4 {[%clk 0:00:04.9]} 41...
gxh4 {[%clk 0:00:02.7]} 42. gxh4 {[%clk 0:00:05.7]} 42... Rd7 {[%clk 0:00:03.6]}
43. Kc3 {[%clk 0:00:05.8]} 43... e5 {[%clk 0:00:03.5]} 44. d5 {[%clk 0:00:05.5]}
44... Rdc7 {[%clk 0:00:01.7]} 45. Re6+ {[%clk 0:00:05.6]} 45... Kf7 {[%clk
0:00:01.6]} 46. Raa6 {[%clk 0:00:05.9]} 1-0

[Event "Late-Titled-Tuesday-Blitz-February-27-2024"]
[Site "Chess.com"]
[Date "2024.02.27"]
[Round "9"]
[White "Njal28"]
[Black "Hrant_ChessMood"]
[Result "1/2-1/2"]
[WhiteElo "3043"]
[BlackElo "3015"]
[TimeControl "180+1"]
[EndTime "15:44:35 PST"]
[Termination "Game drawn - insufficient material"]

1. d4 {[%clk 0:03:00.9]} 1... d5 {[%clk 0:03:00]} 2. c4 {[%clk 0:02:59.7]} 2...
e6 {[%clk 0:03:00.2]} 3. Nf3 {[%clk 0:02:59.9]} 3... Nf6 {[%clk 0:03:00.2]} 4.
Nc3 {[%clk 0:02:59.4]} 4... Be7 {[%clk 0:03:00.1]} 5. e3 {[%clk 0:02:58.9]} 5...
O-O {[%clk 0:02:58.7]} 6. cxd5 {[%clk 0:02:59.3]} 6... Nxd5 {[%clk 0:02:56.6]}
7. Bd3 {[%clk 0:03:00]} 7... c5 {[%clk 0:02:55.9]} 8. O-O {[%clk 0:02:59.4]}
8... Nc6 {[%clk 0:02:55.4]} 9. a3 {[%clk 0:02:56.3]} 9... cxd4 {[%clk
0:02:49.5]} 10. exd4 {[%clk 0:02:56]} 10... Bf6 {[%clk 0:02:47.5]} 11. Bc2
{[%clk 0:02:53.1]} 11... Nxc3 {[%clk 0:02:33.1]} 12. bxc3 {[%clk 0:02:53.2]}
12... b6 {[%clk 0:02:32]} 13. h4 {[%clk 0:02:32.3]} 13... Bb7 {[%clk 0:02:19.1]}
14. Ng5 {[%clk 0:02:32.1]} 14... g6 {[%clk 0:02:09.7]} 15. Qg4 {[%clk
0:02:22.4]} 15... Ne7 {[%clk 0:02:03.4]} 16. h5 {[%clk 0:02:13]} 16... Rc8
{[%clk 0:01:58.5]} 17. hxg6 {[%clk 0:02:02.9]} 17... Nxg6 {[%clk 0:01:45.2]} 18.
Be4 {[%clk 0:01:20.4]} 18... Bxe4 {[%clk 0:01:32.4]} 19. Nxe4 {[%clk 0:01:20.4]}
19... Bg7 {[%clk 0:01:29.6]} 20. Bg5 {[%clk 0:01:09.1]} 20... Qd5 {[%clk
0:01:10.9]} 21. Bf6 {[%clk 0:01:09.3]} 21... Qf5 {[%clk 0:00:56.4]} 22. Qxf5
{[%clk 0:01:09.5]} 22... exf5 {[%clk 0:00:56.1]} 23. Bxg7 {[%clk 0:01:10.4]}
23... Kxg7 {[%clk 0:00:56.4]} 24. Nd6 {[%clk 0:01:11.3]} 24... Rxc3 {[%clk
0:00:56.1]} 25. Nxf5+ {[%clk 0:01:12]} 25... Kf6 {[%clk 0:00:53.3]} 26. Ne3
{[%clk 0:01:11.6]} 26... Rd8 {[%clk 0:00:49.8]} 27. Rfd1 {[%clk 0:01:05.8]}
27... Nf4 {[%clk 0:00:49.9]} 28. Rd2 {[%clk 0:00:56.1]} 28... Rd3 {[%clk
0:00:37.6]} 29. Rxd3 {[%clk 0:00:52.3]} 29... Nxd3 {[%clk 0:00:38.5]} 30. d5
{[%clk 0:00:52.1]} 30... Nf4 {[%clk 0:00:36.1]} 31. Rd1 {[%clk 0:00:51.7]} 31...
Ke5 {[%clk 0:00:32.5]} 32. Nc4+ {[%clk 0:00:51]} 32... Kf5 {[%clk 0:00:32.2]}
33. Ne3+ {[%clk 0:00:47.9]} 33... Ke4 {[%clk 0:00:29.2]} 34. d6 {[%clk
0:00:41.6]} 34... Ke5 {[%clk 0:00:26.3]} 35. g4 {[%clk 0:00:27.2]} 35... b5
{[%clk 0:00:20.4]} 36. Nf5 {[%clk 0:00:27.6]} 36... h5 {[%clk 0:00:19.1]} 37.
Re1+ {[%clk 0:00:27.9]} 37... Kf6 {[%clk 0:00:19.2]} 38. Re4 {[%clk 0:00:16.9]}
38... Nh3+ {[%clk 0:00:16.8]} 39. Kg2 {[%clk 0:00:17.2]} 39... hxg4 {[%clk
0:00:17.7]} 40. Ne3 {[%clk 0:00:14.9]} 40... Ng5 {[%clk 0:00:14.6]} 41. Rb4
{[%clk 0:00:14.8]} 41... a6 {[%clk 0:00:12.5]} 42. Rf4+ {[%clk 0:00:09]} 42...
Kg6 {[%clk 0:00:12]} 43. a4 {[%clk 0:00:07.7]} 43... Rxd6 {[%clk 0:00:10.2]} 44.
axb5 {[%clk 0:00:07.8]} 44... axb5 {[%clk 0:00:11.1]} 45. Rxg4 {[%clk 0:00:08]}
45... f5 {[%clk 0:00:06.4]} 46. Rb4 {[%clk 0:00:07.9]} 46... Rb6 {[%clk
0:00:06.3]} 47. Nd5 {[%clk 0:00:08.6]} 47... Rb7 {[%clk 0:00:05.8]} 48. Nc3
{[%clk 0:00:09.1]} 48... Ne4 {[%clk 0:00:04.4]} 49. Rxb5 {[%clk 0:00:09.1]}
49... Rxb5 {[%clk 0:00:03.7]} 50. Nxb5 {[%clk 0:00:10]} 50... Nxf2 {[%clk
0:00:04.3]} 51. Nd4 {[%clk 0:00:10.2]} 51... f4 {[%clk 0:00:05.2]} 52. Kxf2
{[%clk 0:00:09.1]} 52... f3 {[%clk 0:00:06.1]} 53. Kxf3 {[%clk 0:00:09.5]}
1/2-1/2

[Event "Late-Titled-Tuesday-Blitz-February-27-2024"]
[Site "Chess.com"]
[Date "2024.02.27"]
[Round "9"]
[White "GothamChess"]
[Black "zsizsi99"]
[Result "0-1"]
[WhiteElo "2676"]
[BlackElo "2517"]
[TimeControl "180+1"]
[EndTime "15:44:40 PST"]
[Termination "zsizsi99 won on time"]

1. e4 {[%clk 0:03:00.9]} 1... c5 {[%clk 0:02:54.3]} 2. Nc3 {[%clk 0:03:00.5]}
2... Nc6 {[%clk 0:02:52.4]} 3. Bb5 {[%clk 0:03:01.1]} 3... Nd4 {[%clk
0:02:49.4]} 4. Nf3 {[%clk 0:03:01.5]} 4... a6 {[%clk 0:02:47.3]} 5. Bd3 {[%clk
0:03:00.7]} 5... g6 {[%clk 0:02:39.2]} 6. O-O {[%clk 0:02:59.6]} 6... Bg7 {[%clk
0:02:39.5]} 7. Rb1 {[%clk 0:02:59.1]} 7... b5 {[%clk 0:02:37.7]} 8. b4 {[%clk
0:02:56.3]} 8... c4 {[%clk 0:02:35.8]} 9. Be2 {[%clk 0:02:51]} 9... Bb7 {[%clk
0:02:31.9]} 10. Bb2 {[%clk 0:02:47.5]} 10... e6 {[%clk 0:02:18.1]} 11. Nxd4
{[%clk 0:02:11.2]} 11... Bxd4 {[%clk 0:02:17.8]} 12. Nxb5 {[%clk 0:01:50]} 12...
Bxb2 {[%clk 0:02:17.3]} 13. Nd6+ {[%clk 0:01:49.3]} 13... Ke7 {[%clk 0:02:17.7]}
14. Nxb7 {[%clk 0:01:49.6]} 14... Qb6 {[%clk 0:02:18]} 15. Rxb2 {[%clk
0:01:47.4]} 15... Qxb7 {[%clk 0:02:18]} 16. Bxc4 {[%clk 0:01:29.2]} 16... Qxe4
{[%clk 0:02:17]} 17. d4 {[%clk 0:01:16.2]} 17... Qc6 {[%clk 0:02:09.9]} 18. Bb3
{[%clk 0:01:04.8]} 18... Qc3 {[%clk 0:02:08.1]} 19. Rb1 {[%clk 0:00:59.5]} 19...
d5 {[%clk 0:02:02.6]} 20. Re1 {[%clk 0:00:45.6]} 20... Nf6 {[%clk 0:02:02.8]}
21. Re3 {[%clk 0:00:44.9]} 21... Qc7 {[%clk 0:01:48.2]} 22. Rc1 {[%clk
0:00:43.9]} 22... Qd6 {[%clk 0:01:40.9]} 23. a3 {[%clk 0:00:42.2]} 23... a5
{[%clk 0:01:40.7]} 24. b5 {[%clk 0:00:39.4]} 24... a4 {[%clk 0:01:38]} 25. Ba2
{[%clk 0:00:39.7]} 25... Rhd8 {[%clk 0:01:17.5]} 26. h3 {[%clk 0:00:38.7]} 26...
Qb6 {[%clk 0:01:17.4]} 27. Rb1 {[%clk 0:00:25.7]} 27... Ne4 {[%clk 0:01:17.5]}
28. c4 {[%clk 0:00:22.1]} 28... Qa5 {[%clk 0:01:08]} 29. Rb4 {[%clk 0:00:10.3]}
29... Nd6 {[%clk 0:01:05.2]} 30. cxd5 {[%clk 0:00:10]} 30... Nxb5 {[%clk
0:01:02.4]} 31. dxe6 {[%clk 0:00:09.1]} 31... Nxa3 {[%clk 0:01:02.7]} 32. exf7+
{[%clk 0:00:08.9]} 32... Kf8 {[%clk 0:01:03.2]} 33. Rb7 {[%clk 0:00:06.4]} 33...
Nb5 {[%clk 0:00:58.3]} 34. Rbe7 {[%clk 0:00:04.5]} 34... Nd6 {[%clk 0:00:55.8]}
35. Qf3 {[%clk 0:00:04.1]} 35... Nf5 {[%clk 0:00:52.3]} 36. Re8+ {[%clk
0:00:01.4]} 36... Rxe8 {[%clk 0:00:52.5]} 37. fxe8=Q+ {[%clk 0:00:02.1]} 37...
Rxe8 {[%clk 0:00:52.9]} 38. g4 {[%clk 0:00:02.9]} 38... Rxe3 {[%clk 0:00:51.3]}
39. fxe3 {[%clk 0:00:03.4]} 39... Qe1+ {[%clk 0:00:50.7]} 40. Kg2 {[%clk
0:00:04.1]} 40... Qd2+ {[%clk 0:00:48.3]} 41. Qf2 {[%clk 0:00:04.7]} 41... Qxf2+
{[%clk 0:00:45.8]} 42. Kxf2 {[%clk 0:00:05.6]} 42... Nd6 {[%clk 0:00:44.2]} 43.
Ke2 {[%clk 0:00:06.2]} 43... Ne4 {[%clk 0:00:44.2]} 44. Kd3 {[%clk 0:00:06.5]}
44... Nf2+ {[%clk 0:00:44.2]} 45. Kc4 {[%clk 0:00:07.1]} 45... Nxh3 {[%clk
0:00:44.8]} 46. e4 {[%clk 0:00:04.4]} 46... Nf2 {[%clk 0:00:45]} 47. e5 {[%clk
0:00:05]} 47... Nxg4 {[%clk 0:00:44.2]} 48. Kd5 {[%clk 0:00:05.7]} 48... Ke7
{[%clk 0:00:42.4]} 49. Ke4 {[%clk 0:00:04.4]} 49... Nf2+ {[%clk 0:00:35.4]} 50.
Ke3 {[%clk 0:00:04.6]} 50... Nd1+ {[%clk 0:00:35.2]} 51. Kd2 {[%clk 0:00:04.6]}
51... Nf2 {[%clk 0:00:30.7]} 52. d5 {[%clk 0:00:04.7]} 52... Ng4 {[%clk
0:00:30.5]} 53. e6 {[%clk 0:00:02.9]} 53... h5 {[%clk 0:00:29.2]} 54. Kd3 {[%clk
0:00:02]} 54... h4 {[%clk 0:00:29.4]} 55. Ke2 {[%clk 0:00:02.2]} 55... Ne5
{[%clk 0:00:24.6]} 56. Ke3 {[%clk 0:00:02]} 56... g5 {[%clk 0:00:24.7]} 57. Bb1
{[%clk 0:00:02.4]} 57... a3 {[%clk 0:00:22]} 58. Ke4 {[%clk 0:00:02.8]} 58...
Nc4 {[%clk 0:00:20.2]} 59. Kf5 {[%clk 0:00:02.5]} 59... h3 {[%clk 0:00:19.9]}
60. Kxg5 {[%clk 0:00:01.9]} 60... h2 {[%clk 0:00:20.4]} 0-1